{"text_format":"1","workbook":"xlsx","n_sheets":5,"sheets":["сент 16Кох ","Лист1","Лист2","Лист3","Отчет о совместимости"],"not_rendered":{"charts":0,"images":0,"macros":0,"external_links":0,"defined_names":10,"comments":0,"pivot_tables":0},"unopened":[],"bounds":{"document_bytes":16777216,"sheet_cells":100000,"rows_first":2000,"rows_last":500,"rows_between":2000,"halvings":0,"cell_chars":16384,"cell_head_chars":4096},"cells_cut":0,"cells_raw":0,"read":"whole","date_system":"1900"}

{"sheet":"сент 16Кох ","index":0,"n_rows":50,"n_cols":28,"rows_kept":50,"cut":false,"hidden":false,"merged":[[9,15,11,15],[8,23,11,23],[43,1,43,23],[44,2,44,23],[9,10,11,10],[9,11,11,11],[9,12,11,12],[9,13,11,13],[9,2,11,2],[9,3,11,3],[9,4,11,4],[9,5,11,5],[9,6,11,6],[9,7,11,7],[9,8,11,8],[9,9,11,9],[1,22,1,24],[5,2,5,26],[6,1,6,24],[7,1,7,24],[8,1,11,1],[8,2,8,13],[8,24,11,24],[9,16,11,16],[9,17,11,17],[9,18,11,18],[9,19,11,19],[8,21,11,21],[8,22,11,22],[8,14,8,19],[8,20,11,20],[9,14,11,14]]}
[null,"ПАТ \"УКРТРАНСГАЗ\""]
[null,"Філія \"УМГ\"ХАРКІВТРАНСГАЗ\""]
[null," Кегичівський п/м  Харківського  ЛВУМГ "]
[null,"Вимірювальна хіміко-аналітична лабораторія"]
[null,"Свідоцтво про атестацію № 100-272/2014  дійсне до  16.12.2017 р."]
[null,null,"ПАСПОРТ ФІЗИКО-ХІМІЧНИХ ПОКАЗНИКІВ ПРИРОДНОГО ГАЗУ"]
[null,"переданого УМГ \"Харківтрансгаз\" Первомайським ЛВ УМГ  та прийнятого УМГ \"Харківтрансгаз\"  Харківським ЛВ УМГ (ГРС Коханівська.ГРС Сахновщина), відібраного на Коханівській ГРС"]
[null,"з газопроводу \"Союз\" за період з 01.09.2016 р. по 30.09.2016 р."]
[null,"Число місяця","Компонентний склад, % мол. ",null,null,null,null,null,null,null,null,null,null,null,"при 20°С; 101,325 кПа",null,null,null,null,null,"Температура точки роси  вологи (Р=3.92 Мпа), ºС","Температура точки роси вуглеводнів, ºС","Маса механічних домішок, мг/м³                    ","Масова концентрація меркаптанової сірки, мг/м³                       ","Масова концентрація сірководню, мг/м³                       "]
[null,null,"метан C1","етан C2","пропан C3","ізо-бутан i-C4","н-бутан н  C4","нео-пентан нео-C5","ізо-пентан i-C5","н-пентан н-C5","гексани та вищі C6+","Кисень О2","азот N2","діоксид вуглецю CO2","густина кг/м³","теплота зоряння нижча МДж/м³","теплота зоряння нижча кКал/м³","Теплота згоряння вища МДж/м³","Теплота згоряння вища кКал/м³","число Воббе вище МДж/м³"]
[]
[]
[null,1,null,null,null,null,null,null,null,null,null,null,null,null,null,null,null,null,null,null,null,null,null,null,null,null,{"$f":"SUM(C13:N13)","v":0},{"$f":"IF(AA13=100,\"ОК\",\" \")","v":" "}]
[null,2,null,null,null,null,null,null,null,null,null,null,null,null,null,null,null,null,null,null,null,null,null,null,null,null,{"$f":"SUM(C14:N14)","v":0},{"$f":"IF(AA14=100,\"ОК\",\" \")","v":" "}]
[null,3,null,null,null,null,null,null,null,null,null,null,null,null,null,null,null,null,null,null,null,null,null,null,null,null,0,{"$f":"IF(AA15=100,\"ОК\",\" \")","v":" "}]
[null,4,null,null,null,null,null,null,null,null,null,null,null,null,null,null,null,null,null,null,null,null,null,null,null,null,0,{"$f":"IF(AA16=100,\"ОК\",\" \")","v":" "}]
[null,5,null,null,null,null,null,null,null,null,null,null,null,null,null,null,null,null,null,null,null,null,null,null,null,null,0,{"$f":"IF(AA17=100,\"ОК\",\" \")","v":" "}]
[null,6,null,null,null,null,null,null,null,null,null,null,null,null,null,null,null,null,null,null,null,null,null,null,null,null,0]
[null,7,95.600700000000003,2.2945000000000002,0.79279999999999995,0.12989999999999999,0.1331,3.0099999999999998E-2,2.8299999999999999E-2,2.07E-2,1.1900000000000001E-2,8.0000000000000002E-3,0.77710000000000001,0.17299999999999999,0.70369999999999999,34.421399999999998,8221,38.145899999999997,9111,49.9041,null,null,null,2.9999999999999997E-4,"до 0.0001",null,100.00010000000002]
[null,8,null,null,null,null,null,null,null,null,null,null,null,null,null,null,null,null,null,null,null,null,null,null,null,null,0]
[null,9,null,null,null,null,null,null,null,null,null,null,null,null,null,null,null,null,null,null,null,null,null,null,null,null,{"$f":"SUM(C21:N21)","v":0}]
[null,10,null,null,null,null,null,null,null,null,null,null,null,null,null,null,null,null,null,null,null,null,null,null,null,null,{"$f":"SUM(C22:N22)","v":0}]
[null,11,null,null,null,null,null,null,null,null,null,null,null,null,null,null,null,null,null,null,null,null,null,null,null,null,0]
[null,12,null,null,null,null,null,null,null,null,null,null,null,null,null,null,null,null,null,null,null,null,null,null,null,null,0]
[null,13,null,null,null,null,null,null,null,null,null,null,null,null,null,null,null,null,null,null,null,null,null,null,null,null,0]
[null,14,95.805899999999994,2.1768999999999998,0.73529999999999995,0.11940000000000001,0.122,3.27E-2,2.6100000000000002E-2,1.9E-2,1.0699999999999999E-2,7.7000000000000002E-3,0.78129999999999999,0.16309999999999999,0.70179999999999998,34.343000000000004,8203,38.061999999999998,9091,49.862000000000002,null,null,null,null,null,null,100.0001]
[null,15,null,null,null,null,null,null,null,null,null,null,null,null,null,null,null,null,null,null,null,null,null,null,null,null,0,{"$f":"IF(AA27=100,\"ОК\",\" \")","v":" "}]
[null,16,null,null,null,null,null,null,null,null,null,null,null,null,null,null,null,null,null,null,null,null,null,null,null,null,0,{"$f":"IF(AA28=100,\"ОК\",\" \")","v":" "}]
[null,17,null,null,null,null,null,null,null,null,null,null,null,null,null,null,null,null,null,null,null,null,null,null,null,null,0,{"$f":"IF(AA29=100,\"ОК\",\" \")","v":" "}]
[null,18,null,null,null,null,null,null,null,null,null,null,null,null,null,null,null,null,null,null,null,null,null,null,null,null,0]
[null,19,null,null,null,null,null,null,null,null,null,null,null,null,null,null,null,null,null,null,null,null,null,null,null,null,0]
[null,20,null,null,null,null,null,null,null,null,null,null,null,null,null,null,null,null,null,null,null,null,null,null,null,null,0]
[null,21,95.857900000000001,2.1812,0.72109999999999996,0.1134,0.1152,2.3199999999999998E-2,2.5700000000000001E-2,1.9800000000000002E-2,1.0500000000000001E-2,8.0000000000000002E-3,0.76500000000000001,0.159,0.70109999999999995,34.323999999999998,8185,38.042000000000002,9086,49.860999999999997,null,null,null,null,null,null,100.00000000000001]
[null,22,null,null,null,null,null,null,null,null,null,null,null,null,null,null,null,null,null,null,null,null,null,null,null,null,0]
[null,23,null,null,null,null,null,null,null,null,null,null,null,null,null,null,null,null,null,null,null,null,null,null,null,null,0]
[null,24,null,null,null,null,null,null,null,null,null,null,null,null,null,null,null,null,null,null,null,null,null,null,null,null,0,{"$f":"IF(AA36=100,\"ОК\",\" \")","v":" "}]
[null,25,null,null,null,null,null,null,null,null,null,null,null,null,null,null,null,null,null,null,null,null,null,null,null,null,0,{"$f":"IF(AA37=100,\"ОК\",\" \")","v":" "}]
[null,26,null,null,null,null,null,null,null,null,null,null,null,null,null,null,null,null,null,null,null,null,null,null,null,null,0,{"$f":"IF(AA38=100,\"ОК\",\" \")","v":" "}]
[null,27,null,null,null,null,null,null,null,null,null,null,null,null,null,null,null,null,null,null,null,null,null,null,null,null,0,{"$f":"IF(AA39=100,\"ОК\",\" \")","v":" "}]
[null,28,95.921099999999996,2.1459000000000001,0.7,0.11600000000000001,0.11600000000000001,3.5299999999999998E-2,2.5600000000000001E-2,1.89E-2,1.01E-2,8.0999999999999996E-3,0.74980000000000002,0.1532,0.70079999999999998,34.324199999999998,8198,38.042400000000001,9086,49.871899999999997,null,null,null,2.9999999999999997E-4,"до 0.0001",null,99.999999999999986]
[null,29,null,null,null,null,null,null,null,null,null,null,null,null,null,null,null,null,null,null,null,null,null,null,null,null,0]
[null,30,null,null,null,null,null,null,null,null,null,null,null,null,null,null,null,null,null,null,null,null,null,null,null,null,0,{"$f":"IF(AA42=100,\"ОК\",\" \")","v":" "}]
[null,31,null,null,null,null,null,null,null,null,null,null,null,null,null,null,null,null,null,null,null,null,null,null,null,null,0,{"$f":"IF(AA43=100,\"ОК\",\" \")","v":" "}]
[]
[]
[null,null,null,null,null,null,null,null,null,null,null,null,null,null,null,null,null,null,null,null,null,null,null,524506.07000000007]
[null,null,"Зам.начальника Харківського ЛВ УМГ                                                                                                                                                                                                                                                                   .2016р   ",null,null,null,null,null,null,null,null,"А.М.Панасюк ",null,null,null,null,null,null,"30.09.2016р."]
[null,null,"    Підрозділу підприємства, якому підпорядкована ХАЛ",null,null,null,null,null,null,null,null,"прізвище",null,"підпис",null,null,null,null,null,"дата     "]
[null,null,"Завідувач ВХАЛ                                                                                                                                                                                                                                                          .2016р   ",null,null,null,null,null,null,null,null,"С.В.Гусєва",null,null,null,null,null,null,"30.09.2016р."]
[null,null," ВХАЛ, де здійснювались аналізи газу",null,null,null,null,null,null,null,null,"прізвище",null,"підпис",null,null,null,null,null,"дата     "]

{"sheet":"Лист1","index":1,"n_rows":50,"n_cols":28,"rows_kept":50,"cut":false,"hidden":false,"merged":[[44,2,44,23],[43,1,43,23],[8,20,11,20],[8,21,11,21],[8,1,11,1],[9,11,11,11],[5,2,5,26],[8,23,11,23],[8,24,11,24],[9,14,11,14],[9,18,11,18],[8,14,8,19],[9,16,11,16],[9,7,11,7],[9,12,11,12],[9,17,11,17],[1,22,1,24],[6,1,6,24],[7,1,7,24],[9,3,11,3],[9,2,11,2],[9,6,11,6],[9,13,11,13],[9,15,11,15],[9,4,11,4],[9,5,11,5],[9,19,11,19],[8,2,8,13],[8,22,11,22],[9,8,11,8],[9,10,11,10],[9,9,11,9]]}
[null,"ПАТ \"УКРТРАНСГАЗ\""]
[null,"Філія \"УМГ\"ХАРКІВТРАНСГАЗ\""]
[null,"__________________п/м ______________ ЛВУМГ (ВУПЗГ)"]
[null,"Вимірювальна хіміко-аналітична лабораторія"]
[null,"Свідоцтво про атестацію № ______________ дійсне до  _________________ р."]
[null,null,"ПАСПОРТ ФІЗИКО-ХІМІЧНИХ ПОКАЗНИКІВ ПРИРОДНОГО ГАЗУ"]
[null,"переданого______________________ та прийнятого _________________________________ перелік ГРС, на які поширюються результати контролю _______________________________________"]
[null,"з газопроводу ______________________________________________________________________________________за період з _______________________ по ______________________________"]
[null,"Число місяця","Компонентний склад, % мол. ",null,null,null,null,null,null,null,null,null,null,null,"при 20°С; 101,325 кПа",null,null,null,null,null,"Температура точки роси  вологи (Р=3.92 Мпа), ºС","Температура точки роси вуглеводнів, ºС","Маса механічних домішок, мг/м³                    ","Масова концентрація меркаптанової сірки, мг/м³                       ","Масова концентрація сірководню, мг/м³                       "]
[null,null,"метан C1","етан C2","пропан C3","ізо-бутан i-C4","н-бутан н  C4","нео-пентан нео-C5","ізо-пентан i-C5","н-пентан н-C5","гексани та вищі C6+","Кисень О2","азот N2","діоксид вуглецю CO2","густина кг/м³","теплота зоряння нижча МДж/м³","теплота зоряння нижча кКал/м³","Теплота згоряння вища МДж/м³","Теплота згоряння вища кКал/м³","число Воббе вище МДж/м³"]
[]
[]
[null,1,null,null,null,null,null,null,null,null,null,null,null,null,null,null,null,null,null,null,null,null,null,null,null,null,{"$f":"SUM(C13:N13)","v":0},{"$f":"IF(AA13=100,\"ОК\",\" \")","v":" "}]
[null,2,null,null,null,null,null,null,null,null,null,null,null,null,null,null,null,null,null,null,null,null,null,null,null,null,{"$f":"SUM(C14:N14)","v":0},{"$f":"IF(AA14=100,\"ОК\",\" \")","v":" "}]
[null,3,null,null,null,null,null,null,null,null,null,null,null,null,null,null,null,null,null,null,null,null,null,null,null,null,0,{"$f":"IF(AA15=100,\"ОК\",\" \")","v":" "}]
[null,4,null,null,null,null,null,null,null,null,null,null,null,null,null,null,null,null,null,null,null,null,null,null,null,null,0,{"$f":"IF(AA16=100,\"ОК\",\" \")","v":" "}]
[null,5,null,null,null,null,null,null,null,null,null,null,null,null,null,null,null,null,null,null,null,null,null,null,null,null,0,{"$f":"IF(AA17=100,\"ОК\",\" \")","v":" "}]
[null,6,null,null,null,null,null,null,null,null,null,null,null,null,null,null,null,null,null,null,null,null,null,null,null,null,0]
[null,7,null,null,null,null,null,null,null,null,null,null,null,null,null,null,null,null,null,null,null,null,null,null,null,null,0]
[null,8,null,null,null,null,null,null,null,null,null,null,null,null,null,null,null,null,null,null,null,null,null,null,null,null,0]
[null,9,null,null,null,null,null,null,null,null,null,null,null,null,null,null,null,null,null,null,null,null,null,null,null,null,0]
[null,10,null,null,null,null,null,null,null,null,null,null,null,null,null,null,null,null,null,null,null,null,null,null,null,null,0]
[null,11,null,null,null,null,null,null,null,null,null,null,null,null,null,null,null,null,null,null,null,null,null,null,null,null,0]
[null,12,null,null,null,null,null,null,null,null,null,null,null,null,null,null,null,null,null,null,null,null,null,null,null,null,0]
[null,13,null,null,null,null,null,null,null,null,null,null,null,null,null,null,null,null,null,null,null,null,null,null,null,null,0]
[null,14,null,null,null,null,null,null,null,null,null,null,null,null,null,null,null,null,null,null,null,null,null,null,null,null,0]
[null,15,null,null,null,null,null,null,null,null,null,null,null,null,null,null,null,null,null,null,null,null,null,null,null,null,0,{"$f":"IF(AA27=100,\"ОК\",\" \")","v":" "}]
[null,16,null,null,null,null,null,null,null,null,null,null,null,null,null,null,null,null,null,null,null,null,null,null,null,null,0,{"$f":"IF(AA28=100,\"ОК\",\" \")","v":" "}]
[null,17,null,null,null,null,null,null,null,null,null,null,null,null,null,null,null,null,null,null,null,null,null,null,null,null,0,{"$f":"IF(AA29=100,\"ОК\",\" \")","v":" "}]
[null,18,null,null,null,null,null,null,null,null,null,null,null,null,null,null,null,null,null,null,null,null,null,null,null,null,0]
[null,19,null,null,null,null,null,null,null,null,null,null,null,null,null,null,null,null,null,null,null,null,null,null,null,null,0]
[null,20,null,null,null,null,null,null,null,null,null,null,null,null,null,null,null,null,null,null,null,null,null,null,null,null,0]
[null,21,null,null,null,null,null,null,null,null,null,null,null,null,null,null,null,null,null,null,null,null,null,null,null,null,0]
[null,22,null,null,null,null,null,null,null,null,null,null,null,null,null,null,null,null,null,null,null,null,null,null,null,null,0]
[null,23,null,null,null,null,null,null,null,null,null,null,null,null,null,null,null,null,null,null,null,null,null,null,null,null,0]
[null,24,null,null,null,null,null,null,null,null,null,null,null,null,null,null,null,null,null,null,null,null,null,null,null,null,0,{"$f":"IF(AA36=100,\"ОК\",\" \")","v":" "}]
[null,25,null,null,null,null,null,null,null,null,null,null,null,null,null,null,null,null,null,null,null,null,null,null,null,null,0,{"$f":"IF(AA37=100,\"ОК\",\" \")","v":" "}]
[null,26,null,null,null,null,null,null,null,null,null,null,null,null,null,null,null,null,null,null,null,null,null,null,null,null,0,{"$f":"IF(AA38=100,\"ОК\",\" \")","v":" "}]
[null,27,null,null,null,null,null,null,null,null,null,null,null,null,null,null,null,null,null,null,null,null,null,null,null,null,0,{"$f":"IF(AA39=100,\"ОК\",\" \")","v":" "}]
[null,28,null,null,null,null,null,null,null,null,null,null,null,null,null,null,null,null,null,null,null,null,null,null,null,null,0]
[null,29,null,null,null,null,null,null,null,null,null,null,null,null,null,null,null,null,null,null,null,null,null,null,null,null,0]
[null,30,null,null,null,null,null,null,null,null,null,null,null,null,null,null,null,null,null,null,null,null,null,null,null,null,0,{"$f":"IF(AA42=100,\"ОК\",\" \")","v":" "}]
[null,31,null,null,null,null,null,null,null,null,null,null,null,null,null,null,null,null,null,null,null,null,null,null,null,null,0,{"$f":"IF(AA43=100,\"ОК\",\" \")","v":" "}]
[]
[]
[]
[null,null,"Начальник                                                                                                                                                                                                                                                                   .2016р   "]
[null,null,"    Підрозділу підприємства, якому підпорядкована ХАЛ",null,null,null,null,null,null,null,null,"прізвище",null,"підпис",null,null,null,null,null,"дата     "]
[null,null,"Завідувач ХАЛ                                                                                                                                                                                                                                                          .2016р   "]
[null,null,"  ХАЛ, де здійснювались аналізи газу",null,null,null,null,null,null,null,null,"прізвище",null,"підпис",null,null,null,null,null,"дата     "]

{"sheet":"Лист2","index":2,"n_rows":0,"n_cols":0,"rows_kept":0,"cut":false,"hidden":false,"merged":[]}

{"sheet":"Лист3","index":3,"n_rows":0,"n_cols":0,"rows_kept":0,"cut":false,"hidden":false,"merged":[]}

{"sheet":"Отчет о совместимости","index":4,"n_rows":8,"n_cols":6,"rows_kept":8,"cut":false,"hidden":false,"merged":[]}
[null,"Отчет о совместимости для Пролетарка червень закачка  2012.xls"]
[null,"Дата отчета: 13.06.2012 15:12"]
[]
[null,"Некоторые свойства данной книги не поддерживаются более ранними версиями Excel. Открытие книги в более ранней версии Excel или ее сохранение в формате более ранней версии приведет к потере или ограничению функциональности этих свойств."]
[]
[null,"Несущественная потеря точности",null,null,"Число экземпляров","Версия"]
[]
[null,"Некоторые ячейки или стили в этой книге содержат форматирование, не поддерживаемое выбранным форматом файла. Эти форматы будут преобразованы в наиболее близкий из имеющихся форматов.",null,null,14,"Excel 97-2003"]